bitfinex-derivatives/quotes_ETHF0:USTF0_20260203
["timestamp","ask_amount","ask_price","bid_price","bid_amount"]
[1770138709165,5.013,2227.2,2225.7,2.56097923]
[1770138709370,1.77459752,2227.1,2225.7,0.00368622]
[1770138709675,3.91517474,2227.0,2225.7,0.00368622]
[1770138709875,2.58146988,2227.1,2225.7,0.00368622]
[1770138710076,3.38603858,2226.9,2225.7,0.00368622]
[1770138710278,2.42007366,2227.1,2225.7,0.00368622]
[1770138710478,2.42007366,2227.1,2225.7,2.5629856]
[1770138710675,3.70883827,2226.9,2225.8,0.18407036]
[1770138710978,0.16139622,2227.1,2226.0,0.18407036]
[1770138711276,6.884,2227.3,2226.0,2.55929938]
[1770138711471,3.06329689,2227.8,2226.0,2.55929938]
[1770138711675,2.25867019,2227.1,2226.0,2.55929938]
[1770138711871,1.93387849,2227.8,2226.0,2.55929938]
[1770138712072,1.1294184,2227.6,2226.2,2.55929938]
[1770138712273,8.24262602,2227.9,2226.2,2.55929938]
[1770138712473,2.25650426,2227.8,2226.3,2.55929938]
[1770138712673,7.436,2227.9,2226.3,2.55929938]
[1770138712874,3.70862089,2227.8,2226.4,2.74336974]
[1770138713176,3.70862089,2227.8,2226.4,2.55929938]
[1770138713476,3.70862089,2227.8,2226.9,0.18407036]
[1770138713678,3.70862089,2227.8,2226.8,2.74298902]
[1770138713876,0.16130202,2227.9,2227.2,0.18407036]
[1770138714179,0.00391232,2228.0,2227.1,2.55891866]
[1770138714476,2.09599898,2227.9,2227.1,2.55891866]
[1770138714678,2.09599898,2227.9,2226.3,2.55891866]
[1770138714880,0.00391232,2228.0,2227.1,2.55891866]
[1770138715275,3.54732612,2227.9,2227.1,2.55891866]
[1770138715475,3.54732612,2227.9,2225.9,2.55891866]
[1770138715674,3.54732612,2227.9,2226.3,2.55891866]
[1770138717179,3.96528336,2227.8,2226.3,2.55891866]
[1770138717378,3.96528336,2227.8,2225.7,0.00368622]
[1770138717379,3.96497668,2227.7,2225.8,2.55891866]
[1770138717581,3.96497668,2227.6,2225.8,2.74298902]
[1770138717780,0.16129477,2227.7,2226.0,2.55891866]
[1770138717980,4.67659238,2227.5,2226.2,2.55891866]
[1770138718173,7.427,2227.4,2226.2,2.55891866]
[1770138718374,7.427,2227.4,2225.7,0.00368622]
[1770138718577,4.35390865,2227.3,2225.7,2.56260488]
[1770138719577,3.96555135,2227.2,2223.9,6.66594558]
[1770138719775,2.58236813,2226.7,2224.7,2.55891866]
[1770138719976,7.427,2226.7,2224.7,2.55891866]
[1770138720285,3.86939361,2226.6,2225.4,2.55891866]
[1770138720683,3.87395183,2226.8,2226.0,0.18407036]
[1770138720876,3.22353317,2226.9,2225.7,2.55891866]
[1770138721182,2.58257907,2227.0,2225.9,2.55891866]
[1770138721383,5.263,2227.8,2226.1,2.55891866]
[1770138721583,3.22353317,2227.3,2226.4,2.55891866]
[1770138721778,0.00391232,2228.0,2226.4,2.55891866]
[1770138721779,1.61435398,2227.7,2226.4,2.55891866]
[1770138721976,2.73951845,2227.9,2226.4,2.55891866]
[1770138722181,3.96442974,2227.8,2226.1,2.55891866]
[1770138722380,0.00391232,2228.0,2226.1,2.55891866]
[1770138722576,1.29171372,2227.7,2226.3,2.74298902]
[1770138722785,2.57820919,2227.8,2226.3,2.55891866]
[1770138722983,3.96037672,2227.7,2226.3,2.55891866]
[1770138723184,2.58236813,2227.9,2226.3,2.55891866]
[1770138723482,3.2246424,2227.6,2226.3,2.55891866]
[1770138723679,7.428,2227.7,2226.3,2.55891866]
[1770138723883,7.91190605,2227.7,2226.3,2.55891866]
[1770138724083,2.34053292,2227.6,2225.5,2.246]
[1770138724378,2.58236813,2226.7,2224.6,2.246]
[1770138724584,2.34053292,2226.3,2223.8,2.635]
[1770138724885,2.58236813,2226.4,2224.7,0.02018676]
[1770138724886,1.9385392,2226.2,2224.7,0.02018676]
[1770138725079,1.9385392,2226.2,2225.1,0.18407036]
[1770138725286,0.00578758,2226.2,2225.7,0.18407036]
[1770138725479,2.34053292,2226.6,2224.7,2.246]
[1770138725684,2.37013989,2226.0,2224.7,2.246]
[1770138725880,2.37013989,2226.4,2224.8,0.02018676]
[1770138726081,4.70245663,2225.9,2224.9,2.4101538]
[1770138726280,2.37013989,2225.9,2225.0,0.18407036]
[1770138726480,2.37405993,2225.9,2224.3,2.4101538]
[1770138726686,2.36911359,2225.7,2224.3,2.4101538]
[1770138726891,2.36911359,2225.5,2224.4,2.4101538]
[1770138727181,4.79244203,2225.4,2224.4,0.15144497]
[1770138727485,2.36911359,2225.4,2224.3,2.4101538]
[1770138727683,2.36911359,2225.4,2224.4,0.18407036]
[1770138727986,4.8459337,2225.3,2224.4,2.4101538]
[1770138728183,0.00392004,2225.9,2225.0,2.59422416]
[1770138728486,0.00392004,2225.9,2225.0,2.4101538]
[1770138728487,4.8459337,2225.8,2225.0,2.4101538]
[1770138728681,7.31836593,2225.8,2225.1,0.18407036]
[1770138728882,4.8459337,2225.8,2225.1,0.18407036]
[1770138729188,4.90336473,2225.8,2225.0,2.4101538]
[1770138729685,0.00392004,2225.9,2225.2,2.4101538]
[1770138729989,0.00392004,2225.9,2224.9,2.4101538]
[1770138730285,4.76859721,2225.8,2224.9,2.58843658]
[1770138730486,0.00392004,2225.9,2225.4,2.58843658]
[1770138730690,0.00392004,2225.9,2225.1,2.4101538]
[1770138730881,4.98608747,2225.8,2225.1,2.4101538]
[1770138731089,4.98608747,2225.8,2225.3,0.17828278]
[1770138731488,4.98608747,2225.8,2223.9,4.88709063]
[1770138731489,4.98608747,2225.8,2224.0,2.4101538]
[1770138731688,2.46834409,2225.6,2224.0,2.4101538]
[1770138731886,2.46834409,2225.4,2223.6,2.4101538]
[1770138732087,2.46834409,2224.8,2222.8,2.4101538]
[1770138732384,5.0810208,2224.7,2223.1,2.4101538]
[1770138732790,2.46834409,2224.7,2223.2,2.44048094]
[1770138732989,2.46834409,2224.7,2222.8,2.4101538]
[1770138732990,2.46834409,2224.4,2222.8,2.4101538]
[1770138733188,2.46834409,2224.3,2222.8,2.61227203]
[1770138733490,2.46834409,2224.2,2222.8,2.4101538]
[1770138733691,2.49308355,2224.0,2222.8,2.4101538]
[1770138733887,2.49308355,2224.0,2221.5,2.4101538]
[1770138734082,2.49308355,2223.8,2221.9,2.4101538]
[1770138734487,4.79791443,2223.7,2221.9,2.4101538]
[1770138734785,5.20142733,2224.2,2222.1,2.4101538]
[1770138735190,0.00487231,2224.3,2222.1,2.4101538]
[1770138735386,5.20142733,2224.2,2222.3,2.4101538]
[1770138735593,0.00487231,2224.3,2222.7,2.4101538]
[1770138735790,2.53128265,2225.2,2222.9,2.4101538]
[1770138735986,2.248,2225.8,2222.9,2.4101538]
[1770138736190,4.93173081,2225.1,2222.9,2.4101538]
[1770138736488,2.53128265,2225.4,2223.1,2.4101538]
[1770138736888,2.53128265,2225.2,2223.1,2.41382345]
[1770138737294,2.53128265,2225.0,2223.3,2.4101538]
[1770138737490,2.53128265,2224.8,2223.3,2.4101538]
[1770138737797,2.53128265,2224.6,2223.3,2.4101538]
[1770138737993,0.32345314,2224.7,2223.5,2.4101538]
[1770138738199,5.01696364,2224.5,2223.5,2.4101538]
[1770138738393,5.01696364,2224.8,2223.5,2.4101538]
[1770138738593,0.00399776,2225.4,2223.6,2.51117383]
[1770138738893,5.19538423,2224.7,2223.6,2.4101538]
[1770138739091,5.19538423,2224.8,2223.6,2.4101538]
[1770138739287,2.53528041,2225.4,2223.8,2.4101538]
[1770138739492,2.53128265,2224.7,2223.1,2.41382345]
[1770138739696,2.53128265,2224.5,2223.1,0.00366965]
[1770138739887,6.51049639,2224.6,2223.1,2.41382345]
[1770138740094,3.82521155,2224.4,2223.2,2.57182948]
[1770138740396,3.81744717,2224.5,2223.2,2.4101538]
[1770138740596,5.13230924,2224.3,2223.2,2.4101538]
[1770138740996,4.14098758,2224.4,2223.2,2.4101538]
[1770138741194,5.13230924,2224.2,2223.2,2.4101538]
[1770138741389,2.56009389,2224.1,2222.7,2.42441463]
[1770138741693,2.56009389,2223.6,2221.3,2.42441463]
[1770138741893,5.10948388,2223.4,2220.3,2.42441463]
[1770138742189,2.56009389,2223.2,2221.0,2.42441463]
[1770138742389,2.56009389,2223.0,2221.0,2.42441463]
[1770138742695,4.72345536,2222.9,2221.2,2.42441463]
[1770138742991,4.72345536,2223.0,2221.4,2.42441463]
[1770138743395,2.56009389,2223.1,2221.4,2.42441463]
[1770138743593,4.72345536,2223.0,2221.6,2.42441463]
[1770138744096,7.28354925,2223.0,2221.6,2.42441463]
[1770138744399,2.56009389,2222.9,2221.7,2.81869929]
[1770138744599,2.56009389,2222.9,2221.7,2.42441463]
[1770138744801,2.56009389,2222.8,2221.7,2.42441463]
[1770138745097,4.97246214,2222.7,2221.3,2.42441463]
[1770138745498,2.56496046,2223.2,2221.6,2.42441463]
[1770138745693,4.92757951,2223.1,2221.6,2.42441463]
[1770138745891,2.56496046,2223.2,2221.8,2.42441463]
[1770138746097,4.92757951,2223.1,2221.8,2.42441463]
[1770138746494,2.56009389,2224.0,2222.0,2.42441463]
[1770138746694,2.56009389,2224.4,2222.2,2.42441463]
[1770138746903,5.00247561,2223.9,2222.2,2.42441463]
[1770138747092,2.56009389,2224.7,2222.4,2.42441463]
[1770138747295,2.56009389,2225.0,2222.4,2.42441463]
[1770138747597,2.56009389,2224.5,2222.4,2.42441463]
[1770138747800,2.56009389,2224.5,2222.6,2.42441463]
[1770138747997,4.85057072,2224.4,2222.8,2.42441463]
[1770138748192,0.00529707,2225.0,2222.8,2.42441463]
[1770138748392,2.56009389,2224.8,2222.8,2.42441463]
[1770138748594,2.56009389,2224.7,2222.9,0.16167568]
[1770138748802,2.56009389,2224.6,2223.0,2.42441463]
[1770138748997,2.56009389,2224.5,2223.0,2.42441463]
[1770138749301,4.77396295,2224.4,2223.1,2.43452459]
[1770138749692,2.56009389,2224.3,2223.0,0.19200827]
[1770138749893,4.77396295,2224.4,2223.0,2.42441463]
[1770138750092,4.68851351,2224.2,2223.1,0.21223001]
[1770138750294,2.56009389,2224.7,2223.2,2.42441463]
[1770138750498,4.68851351,2224.1,2223.2,2.42441463]
[1770138751002,2.56009389,2224.7,2222.8,0.00407126]
[1770138751003,2.56009389,2224.7,2223.4,2.42441463]
[1770138751303,4.74575681,2224.5,2223.4,2.42441463]
[1770138751700,2.56009389,2224.6,2223.4,2.42441463]
[1770138752002,4.74842631,2224.4,2223.4,2.42441463]
[1770138752195,4.74842631,2224.5,2223.4,2.42441463]
[1770138752397,2.56009389,2224.6,2223.5,2.56587176]
[1770138752598,4.74842631,2224.5,2223.5,2.42441463]
[1770138752798,4.74842631,2224.5,2223.6,0.06057566]
[1770138752998,2.56009389,2224.7,2223.6,0.06057566]
[1770138753198,3.20697108,2224.6,2223.5,2.42441463]
[1770138753397,2.56009389,2224.6,2223.2,2.42441463]
[1770138753606,1.29375438,2224.5,2223.2,2.42441463]
[1770138754304,1.29375438,2224.5,2223.4,2.42441463]
[1770138755009,2.56009389,2224.9,2223.6,2.42441463]
[1770138755308,2.56009389,2224.8,2223.6,2.42441463]
[1770138755803,7.28816931,2224.7,2223.6,2.42441463]
[1770138756004,2.56009389,2224.6,2222.8,0.00407126]
[1770138756208,4.72807542,2224.7,2220.5,6.73917082]
[1770138756209,2.56009389,2224.0,2220.5,6.73917082]
[1770138756406,3.9923938,2223.9,2221.8,2.27448866]
[1770138756705,0.77099243,2223.9,2222.2,0.07079198]
[1770138756908,2.56009389,2224.1,2221.9,4.887]
[1770138757106,2.56009389,2224.1,2222.3,0.11125454]
[1770138757305,2.56009389,2224.1,2221.9,4.88899797]
[1770138757703,7.44709389,2224.5,2222.4,0.11125454]
[1770138758008,5.04936353,2224.4,2222.1,2.42441463]
[1770138758208,5.04936353,2224.4,2221.9,4.88899797]
[1770138758209,7.60945742,2224.4,2222.6,2.42441463]
[1770138758605,2.56009389,2224.4,2222.8,2.42441463]
[1770138758806,2.56009389,2224.2,2222.8,2.42441463]
[1770138759008,2.56009389,2224.2,2222.9,0.09102872]
[1770138759308,7.474,2224.6,2222.4,2.42441463]
[1770138759309,2.56009389,2224.0,2222.4,2.42441463]
[1770138759507,2.56009389,2223.8,2222.4,2.42441463]
[1770138759804,3.2944965,2223.9,2222.5,2.46486173]
[1770138760009,2.56009389,2223.6,2222.1,2.42441463]
[1770138760210,2.56009389,2223.6,2222.1,0.32351411]
[1770138760508,2.56009389,2223.3,2221.9,0.00199797]
[1770138760710,2.56009389,2223.1,2221.9,0.00199797]
[1770138761005,2.56009389,2222.9,2221.9,0.00199797]
[1770138761205,1.22018279,2223.0,2222.0,0.12141229]
[1770138761403,2.56458774,2223.3,2222.0,0.12141229]
[1770138761404,2.56458774,2223.3,2222.0,2.54582692]
[1770138761906,7.64433141,2223.2,2222.0,2.54582692]
[1770138762504,2.56009389,2223.1,2221.2,2.42441463]
[1770138762711,2.56009389,2222.9,2221.2,2.42441463]
[1770138762906,2.56009389,2222.7,2221.2,2.42441463]
[1770138763109,2.56009389,2222.7,2220.5,0.07831885]
[1770138763309,2.56009389,2222.7,2219.2,2.42441463]
[1770138763310,2.53493292,2221.7,2219.1,2.56075076]
[1770138763511,0.00514629,2221.7,2219.2,2.56075076]
[1770138763710,0.00514629,2221.7,2219.9,2.56075076]
[1770138764011,4.7896817,2221.6,2220.1,2.56075076]
[1770138764512,0.00514629,2221.7,2220.1,2.56075076]
[1770138764713,5.00025256,2221.6,2220.1,2.56075076]
[1770138765013,5.00025256,2221.6,2220.0,4.889]
[1770138765014,5.00025256,2221.6,2220.3,2.56075076]
[1770138765610,5.00025256,2221.6,2220.5,2.56075076]
[1770138765815,6.747,2222.7,2220.5,2.56075076]
[1770138766014,4.1072512,2222.6,2220.5,2.56075076]
[1770138766206,5.05828362,2221.6,2220.7,2.56075076]
[1770138766408,2.92175059,2222.6,2220.7,2.56075076]
[1770138766609,5.12988742,2222.2,2220.7,2.56075076]
[1770138766815,5.13476677,2222.2,2220.7,2.56408826]
[1770138767017,0.00487935,2222.2,2220.8,0.01004697]
[1770138767315,5.12988742,2222.1,2220.7,2.56408826]
[1770138768418,2.50367202,2221.9,2218.9,2.25]
[1770138768618,2.50367202,2221.7,2219.0,2.64]
[1770138768819,2.50367202,2221.5,2219.3,0.30397493]
[1770138769026,2.50367202,2221.3,2219.3,0.30397493]
[1770138769219,2.50367202,2221.1,2219.1,0.03041825]
[1770138769520,2.55255962,2220.9,2219.1,0.03222705]
[1770138770020,4.94874419,2220.8,2219.1,0.03222705]
[1770138770223,4.94874419,2220.8,2217.6,7.96664582]
[1770138770224,2.55255962,2220.5,2217.6,7.96664582]
[1770138770418,4.94874419,2220.8,2219.3,2.49056604]
[1770138770720,4.94874419,2220.4,2219.3,2.49056604]
[1770138770914,4.97523143,2220.5,2219.3,2.49056604]
[1770138771116,2.51684912,2221.2,2219.5,2.49056604]
[1770138771422,4.97523143,2220.4,2219.5,2.49440119]
[1770138771617,7.49208055,2220.9,2219.5,2.49440119]
[1770138771823,0.00470253,2221.2,2219.7,2.49056604]
[1770138772121,0.00470253,2221.2,2219.9,2.49056604]
[1770138772319,7.27859797,2221.1,2219.9,2.49056604]
[1770138772516,2.51684912,2220.9,2219.5,0.00383515]
[1770138772722,2.51684912,2220.9,2219.0,2.49056604]
[1770138773023,2.51684912,2220.7,2219.1,0.25367475]
[1770138773523,2.51684912,2220.5,2219.1,0.25367475]
[1770138773818,5.04269345,2220.7,2219.7,2.4313807]
[1770138774219,5.04269345,2220.8,2219.7,2.59709333]
[1770138774523,2.36021982,2220.7,2219.3,2.4313807]
[1770138774723,5.04269345,2220.8,2219.3,2.4313807]
[1770138774918,4.94952386,2220.6,2219.5,2.4313807]
[1770138775119,4.94952386,2221.0,2220.0,2.4313807]
[1770138775318,0.00470253,2221.2,2220.0,2.4313807]
[1770138775519,2.36021982,2221.6,2220.5,2.59709333]
[1770138775721,2.56192872,2222.8,2220.7,2.4313807]
[1770138776024,2.36021982,2222.4,2220.7,2.4313807]
[1770138776223,2.36021982,2222.4,2221.0,2.4313807]
[1770138776524,2.36464212,2222.4,2221.0,2.43695498]
[1770138776725,2.36021982,2222.2,2221.0,2.43695498]
[1770138777123,4.89326002,2222.1,2221.0,2.43695498]
[1770138777424,4.89326002,2222.1,2221.2,2.4313807]
[1770138777626,4.89326002,2222.1,2221.0,0.00557428]
[1770138777821,7.39070937,2222.3,2221.0,0.00557428]
[1770138778022,5.03048955,2222.2,2221.1,2.4313807]
[1770138778223,0.0044223,2222.4,2221.1,2.4313807]
[1770138778422,5.03048955,2222.3,2221.1,2.4313807]
[1770138778622,0.0044223,2222.4,2221.1,2.4313807]
[1770138778817,7.49052208,2222.3,2221.0,0.00557428]
[1770138779025,2.36021982,2222.2,2221.0,0.00557428]
[1770138779419,2.36021982,2222.0,2221.0,0.00557428]
[1770138779725,4.9721168,2221.9,2221.0,2.43695498]
[1770138779925,4.9721168,2221.9,2221.0,0.00557428]
[1770138780222,7.49052208,2222.0,2221.0,0.00557428]
[1770138780423,2.36021982,2222.0,2221.0,0.00557428]
[1770138780628,5.13030226,2221.9,2221.0,0.00557428]
[1770138780830,2.36021982,2221.8,2221.0,0.00557428]
[1770138781019,2.36021982,2221.8,2219.1,2.4313807]
[1770138781219,2.36021982,2221.6,2219.5,2.4313807]
[1770138781527,2.36021982,2221.4,2219.5,2.4313807]
[1770138781722,2.36021982,2221.2,2219.5,2.4313807]
[1770138781919,2.36021982,2221.2,2219.6,2.49233603]
[1770138782123,2.36021982,2221.0,2219.3,2.4313807]
[1770138782318,2.36021982,2221.0,2219.3,2.57337715]
[1770138782528,2.36021982,2220.8,2219.3,2.4313807]
[1770138782728,2.36356644,2220.8,2218.4,2.4313807]
[1770138782921,2.36021982,2220.6,2218.4,2.4313807]
[1770138783123,4.69193073,2220.7,2219.4,2.4313807]
[1770138783321,4.69193073,2220.5,2219.6,0.16571263]
[1770138783527,4.69193073,2220.7,2219.6,2.4313807]
[1770138783727,0.00334662,2220.8,2219.7,0.236744]
[1770138784224,0.00334662,2220.8,2219.9,0.16571263]
[1770138784426,2.36356644,2220.8,2219.7,2.6681247]
[1770138784627,5.09082817,2220.7,2219.8,0.16571263]
[1770138784822,2.36356644,2220.8,2219.7,2.50241207]
[1770138784823,0.00334662,2220.8,2220.3,2.4313807]
[1770138785131,2.36021982,2221.7,2220.7,0.16571263]
[1770138785328,2.36021982,2222.6,2221.3,0.16571263]
[1770138785623,2.36021982,2222.6,2220.4,0.02032438]
[1770138785624,2.36021982,2222.5,2221.1,2.59709333]
[1770138785824,2.36021982,2222.5,2220.7,2.4313807]
[1770138786030,2.36021982,2222.3,2220.7,2.4313807]
[1770138786421,2.36021982,2222.1,2220.4,2.4313807]
[1770138786623,1.13455871,2222.2,2220.8,2.4313807]
[1770138786928,2.26691343,2222.3,2221.4,0.16571263]
[1770138787124,2.36491024,2222.5,2221.5,0.16571263]
[1770138787329,0.00469042,2222.5,2221.9,0.16571263]
[1770138787631,2.36491024,2222.5,2221.8,0.16571263]
[1770138788131,2.36021982,2222.3,2221.4,0.00375353]
[1770138788630,2.36021982,2222.3,2221.7,0.16571263]
[1770138788830,2.36021982,2222.3,2221.8,0.16571263]
[1770138789029,2.36021982,2222.1,2221.4,0.00375353]
[1770138789431,2.36021982,2221.9,2221.4,0.00375353]
[1770138789731,2.36021982,2221.9,2220.7,2.642]
[1770138790133,2.36021982,2221.7,2220.9,0.15586382]
[1770138790432,4.73476093,2221.6,2220.7,2.642]
[1770138790632,2.36021982,2221.4,2219.5,0.58110109]
[1770138790931,4.43310728,2221.5,2219.5,0.58110109]
[1770138790932,2.36021982,2221.1,2219.7,0.12181878]
[1770138791123,2.36021982,2220.9,2219.7,0.2776826]
[1770138791333,2.36531319,2220.9,2219.8,0.15586382]
[1770138791529,2.36531319,2220.9,2220.4,0.15586382]
[1770138791731,2.36531319,2220.9,2220.1,0.15586382]
[1770138791934,0.00509337,2220.9,2220.5,0.05083219]
[1770138792131,0.00509337,2220.9,2219.8,0.60590845]
[1770138792132,2.36531319,2220.9,2220.2,0.0101382]
[1770138792534,2.36531319,2220.9,2220.3,0.15586382]
[1770138792735,2.36531319,2220.9,2220.3,0.11167647]
[1770138792935,2.36531319,2220.9,2219.5,0.04056376]
[1770138793235,2.36021982,2220.2,2218.4,0.68430722]
[1770138793428,2.36021982,2220.0,2218.4,0.68430722]
[1770138793626,2.36021982,2220.0,2218.6,0.62685365]
[1770138793834,2.36021982,2219.8,2218.5,0.16231718]
[1770138794027,2.36021982,2219.8,2218.7,0.07105056]
[1770138794229,2.36021982,2219.6,2218.5,0.19277428]
[1770138794533,2.36021982,2219.6,2218.3,0.10151178]
[1770138794740,7.09927949,2219.8,2218.3,0.72836543]
[1770138795036,2.36021982,2219.8,2218.6,0.18262009]
[1770138795236,2.36021982,2219.8,2218.4,0.10151178]
[1770138795532,2.54030006,2220.6,2218.7,0.15216024]
[1770138795734,2.36021982,2220.4,2218.6,0.64540313]
[1770138795933,4.74546829,2220.3,2218.8,0.64540313]
[1770138796133,2.36021982,2220.4,2218.8,0.64540313]
[1770138796334,2.36021982,2220.4,2219.0,0.64540313]
[1770138796531,2.36021982,2220.8,2219.0,0.64540313]
[1770138796733,2.36021982,2220.8,2219.1,0.04059803]
[1770138796940,2.36021982,2220.8,2219.2,0.64540313]
[1770138797134,2.36021982,2220.8,2219.1,0.04059803]
[1770138797435,2.36021982,2220.6,2219.1,2.252]
[1770138797630,0.00509337,2220.9,2219.2,0.68600116]
[1770138797833,5.09188831,2220.8,2219.2,0.68600116]
[1770138798030,2.36531319,2220.9,2219.2,0.68600116]
[1770138799139,0.00509337,2220.9,2219.2,0.68600116]
[1770138799540,2.36021982,2221.3,2219.4,0.6499596]
[1770138799739,2.36021982,2222.1,2219.4,0.6499596]
[1770138800034,2.36021982,2221.9,2219.6,0.64070214]
[1770138800542,2.36571773,2221.7,2219.6,0.64579551]
[1770138801140,2.36571773,2221.7,2219.8,0.63831644]
[1770138802637,2.36571773,2221.5,2219.8,0.63831644]
[1770138803542,2.37029971,2221.9,2219.8,0.63831644]
[1770138803943,2.37029971,2221.9,2220.0,0.61075444]
[1770138804941,2.37029971,2221.9,2220.2,0.61075444]
[1770138805146,0.00458198,2221.9,2220.2,0.61075444]
[1770138805348,2.36571773,2222.3,2220.4,0.61075444]
[1770138805546,2.36571773,2222.3,2220.6,0.60747693]
[1770138806344,2.37028228,2222.3,2220.6,0.60747693]
[1770138807646,2.36571773,2222.1,2220.6,0.60747693]
[1770138808448,2.36571773,2223.0,2220.8,0.6080018]
[1770138808846,2.36571773,2223.4,2221.0,0.60343725]
[1770138809243,2.36571773,2223.4,2221.2,0.60343725]
[1770138809445,2.37068423,2223.4,2221.4,0.60343725]
[1770138809641,2.37068423,2223.4,2221.6,0.60343725]
[1770138810143,2.37068423,2223.4,2221.8,0.639131]
[1770138810347,2.37068423,2223.4,2221.9,2.251]
[1770138810643,2.36571773,2223.2,2221.9,2.251]
[1770138811044,2.36571773,2223.0,2221.9,2.251]
[1770138811242,2.36571773,2223.0,2221.2,0.00432194]
[1770138811441,2.36571773,2222.8,2219.5,0.64345294]
[1770138811640,2.36571773,2222.2,2219.6,0.64345294]
[1770138811948,2.36571773,2222.2,2219.9,0.71757726]
[1770138812246,2.36571773,2222.2,2220.1,0.71757726]
[1770138812550,2.36571773,2222.2,2220.1,0.72179468]
[1770138812751,2.36571773,2222.0,2220.1,0.72179468]
[1770138813155,2.36571773,2221.8,2220.1,0.72179468]
[1770138813452,2.36571773,2222.2,2220.3,0.71757726]
[1770138813754,2.36571773,2222.2,2220.2,9.80735093]
[1770138813755,2.36571773,2222.2,2220.5,0.77905533]
[1770138814054,2.36571773,2222.2,2220.2,4.892]
[1770138814055,2.36571773,2222.2,2220.7,0.77905533]
[1770138814554,2.36939553,2222.2,2220.7,0.77905533]
[1770138816153,0.0036778,2222.2,2220.7,0.77905533]
[1770138816950,2.36939553,2222.2,2220.7,0.77905533]
[1770138817253,2.36939553,2222.2,2220.2,4.892]
[1770138817254,2.36571773,2222.6,2220.9,0.78430457]
[1770138817953,2.36571773,2222.4,2221.0,4.891]
[1770138818153,2.37065181,2222.4,2221.0,2.251]
[1770138818356,2.37065181,2222.4,2221.1,2.64]
[1770138819355,2.36571773,2222.2,2221.1,2.64]
[1770138819852,2.36571773,2222.2,2221.0,2.251]
[1770138820052,2.36571773,2222.0,2220.5,4.891]
[1770138820356,2.36571773,2221.8,2220.1,4.89521742]
[1770138820552,2.36571773,2221.8,2220.2,2.40534146]
[1770138820955,0.00493408,2222.4,2220.2,2.40534146]
[1770138821152,2.36571773,2222.0,2220.3,7.29634146]
[1770138821354,2.36571773,2222.0,2220.4,7.29634146]
[1770138821654,2.36571773,2222.0,2220.5,2.40534146]
[1770138822758,2.37065181,2222.4,2220.5,2.40534146]
[1770138824056,2.37065181,2222.4,2220.7,2.40534146]
[1770138824658,0.00493408,2222.4,2220.7,2.40534146]
[1770138825054,2.37065181,2222.4,2220.7,2.40534146]
[1770138826160,0.00493408,2222.4,2220.7,2.40534146]
[1770138826464,2.36571773,2223.2,2221.3,2.40534146]
[1770138826653,2.36571773,2223.2,2221.5,2.40534146]
[1770138827254,2.36895096,2223.2,2221.5,2.40534146]
[1770138828264,0.00323323,2223.2,2221.6,6.91034146]
[1770138828463,2.36571773,2223.6,2221.7,2.40534146]
[1770138828765,2.36571773,2223.6,2221.9,2.40534146]
[1770138829064,2.36571773,2223.6,2222.1,2.40534146]
[1770138829260,2.36571773,2223.6,2221.7,2.40534146]
[1770138829465,2.37008818,2223.6,2222.2,2.25]
[1770138830466,2.37008818,2223.6,2221.7,2.7759485]
[1770138830667,2.50506014,2223.4,2221.8,4.89]
[1770138830969,2.50506014,2223.4,2221.9,2.37152193]
[1770138832963,0.00437045,2223.6,2221.9,2.37152193]
[1770138833172,2.50943059,2223.6,2221.9,2.37152193]
[1770138834171,2.46983159,2223.6,2222.1,2.40918609]
[1770138834366,2.46983159,2223.6,2222.2,4.89]
[1770138834967,2.46983159,2223.6,2222.1,2.40918609]
[1770138835167,2.46983159,2223.6,2222.2,4.889]
[1770138835771,2.46983159,2223.6,2222.2,7.29818609]
[1770138835971,2.46983159,2223.6,2222.2,4.889]
[1770138837375,2.46983159,2223.6,2222.2,7.29818609]
[1770138837676,2.46983159,2223.6,2222.3,2.40918609]
[1770138839978,0.00437045,2223.6,2222.3,2.40918609]
[1770138840371,2.46546114,2224.3,2222.7,2.40918609]
[1770138840571,2.46546114,2225.3,2223.2,2.40918609]
[1770138840780,2.46546114,2225.3,2223.6,6.91418609]
[1770138841074,2.46546114,2225.3,2223.7,4.889]
[1770138841275,2.46957057,2225.3,2223.7,4.89355445]
[1770138841474,2.46546114,2225.1,2223.8,4.889]
[1770138841879,2.46546114,2225.1,2223.8,7.29818609]
[1770138842079,2.46546114,2225.1,2223.7,0.00455445]
[1770138842481,2.46546114,2224.9,2223.7,0.00455445]
[1770138843176,4.93605894,2224.8,2222.8,10.37583191]
[1770138843383,2.46546114,2224.7,2223.0,2.40918609]
[1770138844183,2.46546114,2224.7,2223.0,2.41350671]
[1770138844584,2.46546114,2224.5,2223.1,4.887]
[1770138845384,2.46546114,2224.3,2223.0,0.00432062]
[1770138845584,2.46546114,2224.3,2222.4,2.638]
[1770138845883,2.46546114,2224.1,2222.4,2.638]
[1770138846178,3.43643164,2224.0,2222.3,6.84681313]
[1770138846384,0.9709705,2224.0,2222.3,6.84681313]
[1770138846584,0.9709705,2224.0,2222.3,6.85241662]
[1770138846985,0.9709705,2224.0,2222.3,0.00560349]
[1770138847283,0.9709705,2224.0,2222.3,0.00237025]
[1770138849491,0.9709705,2224.0,2221.4,2.56058455]
[1770138850488,0.9709705,2224.0,2221.1,5.19958455]
[1770138850789,0.9709705,2224.0,2221.2,2.56058455]
[1770138851487,40.8,2223.9,2221.2,2.56058455]
[1770138851885,9.97750308,2223.8,2220.1,2.56058455]
[1770138852084,9.97750308,2223.8,2219.8,2.56058455]
[1770138852281,2.58564907,2221.7,2219.8,2.56058455]
[1770138852489,2.58564907,2221.5,2219.8,2.56058455]
[1770138852686,4.26355766,2221.4,2219.8,2.56058455]
[1770138852984,4.26355766,2221.3,2219.8,2.56388294]
[1770138853387,9.2000408,2221.2,2219.8,0.00329839]
[1770138853584,4.81277164,2221.2,2219.8,0.00329839]
[1770138853788,4.81277164,2221.3,2219.8,0.00329839]
[1770138853989,4.38728779,2221.2,2219.8,0.00329839]
[1770138854186,4.38728779,2221.1,2219.8,0.00329839]
[1770138854388,4.38728779,2221.0,2219.8,0.00329839]
[1770138854584,2.58564907,2220.7,2218.4,2.56058455]
[1770138854785,2.58564907,2220.4,2218.4,2.56058455]
[1770138854991,4.38728779,2220.3,2218.4,2.56058455]
[1770138855191,5.06249508,2220.3,2218.7,2.56058455]
[1770138855585,4.70657099,2220.2,2218.3,2.79395367]
[1770138855793,7.29222006,2220.1,2217.9,2.56058455]
[1770138855990,2.58564907,2219.9,2217.4,2.66212286]
[1770138856191,4.70657099,2219.8,2217.8,2.56058455]
[1770138856392,6.95757099,2219.7,2217.8,2.56058455]
[1770138856593,4.872413,2219.8,2218.6,2.56058455]
[1770138856792,0.00467683,2219.7,2218.6,2.56058455]
[1770138856989,4.872413,2219.6,2218.7,2.63166988]
[1770138857193,6.935,2220.6,2219.2,2.56058455]
[1770138857586,4.91640758,2220.5,2219.5,4.8119548]
[1770138857791,4.91640758,2220.5,2219.5,2.56058455]
[1770138857990,4.91640758,2220.5,2219.5,2.25137025]
[1770138858294,4.92169272,2220.5,2219.5,2.25689869]